[Event "FIDE World Rapid Chess Championship 2021"]
[White "Czarnota, Pawel"]
[Black "Artemiev, Vladislav"]
[WhiteFideId "1121219"]
[BlackFideId "24101605"]
[WhiteElo "2511"]
[BlackElo "2714"]
[Result "1/2-1/2"]
[Round "06"]
[TimeControl "900+10"]
[Date "2021.12.27"]
[WhiteClock "0:01:46"]
[BlackClock "0:00:38"]

1. e4 {[%clk 0:15:00]}  c6 {[%clk 0:15:00]} 2. d4 {[%clk 0:15:16]}  d5 {[%clk 0:15:16]} 3. Nc3 {[%clk 0:15:16]}  dxe4 {[%clk 0:15:16]} 4. Nxe4 {[%clk 0:15:16]}  Bf5 {[%clk 0:15:16]} 5. Ng3 {[%clk 0:15:16]}  Bg6 {[%clk 0:15:16]} 6. Nh3 {[%clk 0:15:03]}  e6 {[%clk 0:15:45]} 7. Nf4 {[%clk 0:15:03]}  Bd6 {[%clk 0:14:53]} 8. c3 {[%clk 0:14:27]}  Nf6 {[%clk 0:14:53]} 9. Qf3 {[%clk 0:14:31]}  Nbd7 {[%clk 0:13:49]} 10. Bc4 {[%clk 0:14:07]}  Nb6 {[%clk 0:13:33]} 11. Bb3 {[%clk 0:11:32]}  Nbd5 {[%clk 0:11:58]} 12. Nxg6 {[%clk 0:11:39]}  hxg6 {[%clk 0:11:01]} 13. Bg5 {[%clk 0:11:39]}  a5 {[%clk 0:11:07]} 14. Bc2 {[%clk 0:10:12]}  Qc7 {[%clk 0:06:29]} 15. h3 {[%clk 0:07:35]}  Bf4 {[%clk 0:02:56]} 16. Bxf4 {[%clk 0:06:33]}  Qxf4 {[%clk 0:02:56]} 17. Qxf4 {[%clk 0:06:33]}  Nxf4 {[%clk 0:02:56]} 18. O-O {[%clk 0:06:33]}  O-O-O {[%clk 0:03:05]} 19. Rfe1 {[%clk 0:06:24]}  Rd5 {[%clk 0:01:41]} 20. a3 {[%clk 0:05:51]}  g5 {[%clk 0:01:03]} 21. b4 {[%clk 0:04:22]}  g4 {[%clk 0:01:03]} 22. hxg4 {[%clk 0:04:22]}  Nxg4 {[%clk 0:01:03]} 23. Bd1 {[%clk 0:04:22]}  Nf6 {[%clk 0:00:48]} 24. Bf3 {[%clk 0:04:22]}  Rg5 {[%clk 0:00:48]} 25. Ne4 {[%clk 0:03:20]}  Nxe4 {[%clk 0:00:32]} 26. Rxe4 {[%clk 0:03:20]}  Nh3+ {[%clk 0:00:32]} 27. Kf1 {[%clk 0:03:20]}  Rf5 {[%clk 0:00:32]} 28. Ke2 {[%clk 0:03:03]}  Nf4+ {[%clk 0:00:24]} 29. Ke3 {[%clk 0:03:03]}  g5 {[%clk 0:00:24]} 30. c4 {[%clk 0:02:10]}  Rh2 {[%clk 0:00:29]} 31. Rg1 {[%clk 0:02:10]}  axb4 {[%clk 0:00:29]} 32. axb4 {[%clk 0:02:10]}  b5 {[%clk 0:00:29]} 33. Re5 {[%clk 0:02:10]}  Rxe5+ {[%clk 0:00:29]} 34. dxe5 {[%clk 0:02:10]}  bxc4 {[%clk 0:00:29]} 35. Bxc6 {[%clk 0:02:09]}  Nd3 {[%clk 0:00:35]} 36. b5 {[%clk 0:02:09]}  Nxe5 {[%clk 0:00:35]} 37. Kd4 {[%clk 0:01:30]}  Nxc6+ {[%clk 0:00:42]} 38. bxc6 {[%clk 0:01:30]}  Kc7 {[%clk 0:00:42]} 39. Kxc4 {[%clk 0:00:42]}  Kxc6 {[%clk 0:00:53]} 40. Kd4 {[%clk 0:00:42]}  Kd6 {[%clk 0:00:53]} 41. Ke3 {[%clk 0:00:42]}  f5 {[%clk 0:00:53]} 42. g3 {[%clk 0:00:42]}  Ke5 {[%clk 0:00:53]} 43. Ra1 {[%clk 0:00:42]}  Kf6 {[%clk 0:00:53]} 44. Ra8 {[%clk 0:01:02]}  Rh1 {[%clk 0:00:44]} 45. Rf8+ {[%clk 0:01:02]}  Kg7 {[%clk 0:00:44]} 46. Ra8 {[%clk 0:01:02]}  Kf7 {[%clk 0:00:44]} 47. Ke2 {[%clk 0:01:02]}  Rb1 {[%clk 0:00:44]} 48. Rc8 {[%clk 0:01:02]}  Kf6 {[%clk 0:00:44]} 49. Ke3 {[%clk 0:01:17]}  Rb3+ {[%clk 0:01:05]} 50. Ke2 {[%clk 0:01:17]}  Ke5 {[%clk 0:01:05]} 51. Rc4 {[%clk 0:01:17]}  Kd5 {[%clk 0:01:05]} 52. Ra4 {[%clk 0:01:17]}  Rc3 {[%clk 0:01:05]} 53. Ra8 {[%clk 0:01:17]}  Kd4 {[%clk 0:01:05]} 54. Ra4+ {[%clk 0:01:17]}  Rc4 {[%clk 0:01:05]} 55. Ra2 {[%clk 0:01:17]}  Ke4 {[%clk 0:01:05]} 56. Rb2 {[%clk 0:01:17]}  e5 {[%clk 0:01:05]} 57. Ra2 {[%clk 0:01:17]}  Kd5 {[%clk 0:00:56]} 58. Rd2+ {[%clk 0:01:45]}  Ke6 {[%clk 0:00:56]} 59. Ra2 {[%clk 0:01:45]}  Re4+ {[%clk 0:00:56]} 60. Kf1 {[%clk 0:01:45]}  Rd4 {[%clk 0:00:56]} 61. Ke2 {[%clk 0:01:45]}  Rc4 {[%clk 0:00:52]} 62. Rd2 {[%clk 0:01:56]}  e4 {[%clk 0:00:52]} 63. Ra2 {[%clk 0:01:56]}  f4 {[%clk 0:00:52]} 64. gxf4 {[%clk 0:01:56]}  gxf4 {[%clk 0:00:52]} 65. Ra5 {[%clk 0:01:56]}  Rc2+ {[%clk 0:00:52]} 66. Ke1 {[%clk 0:01:56]}  Rb2 {[%clk 0:00:52]} 67. Rh5 {[%clk 0:01:56]}  Rb4 {[%clk 0:00:48]} 68. Ke2 {[%clk 0:01:55]}  Ra4 {[%clk 0:00:48]} 69. Rb5 {[%clk 0:01:55]}  Rd4 {[%clk 0:00:48]} 70. Rh5 {[%clk 0:01:55]}  Rd5 {[%clk 0:00:48]} 71. Rh8 {[%clk 0:01:46]}  Ke5 {[%clk 0:00:38]} 72. Re8+ {[%clk 0:01:46]}  Kd4 {[%clk 0:00:38]} 73. f3 {[%clk 0:01:46]}  Re5 {[%clk 0:00:38]} 74. Rxe5 {[%clk 0:01:46]}  Kxe5 {[%clk 0:00:38]} 75. fxe4 {[%clk 0:01:46]}  Kxe4 {[%clk 0:00:38]} 76. Kf2 {[%clk 0:01:46]}  f3 {[%clk 0:00:38]} 77. Kf1 {[%clk 0:01:46]}  Ke3 {[%clk 0:00:38]} 78. Ke1 {[%clk 0:01:46]}  f2+ {[%clk 0:00:38]} 79. Kf1 {[%clk 0:01:46]}  Kf3 {[%clk 0:00:38]} 1/2-1/2


[Site "http://www.Chess.com"]

[Event "FIDE World Rapid Chess Championship 2021"]
[White "Harikrishna, Pentala"]
[Black "Sanal, Vahap"]
[WhiteFideId "5007003"]
[BlackFideId "6300545"]
[WhiteElo "2705"]
[BlackElo "2509"]
[Result "0-1"]
[Round "06"]
[TimeControl "900+10"]
[Date "2021.12.27"]
[WhiteClock "0:00:15"]
[BlackClock "0:03:20"]

1. d4 {[%clk 0:15:00]}  Nf6 {[%clk 0:15:00]} 2. c4 {[%clk 0:15:17]}  e6 {[%clk 0:15:00]} 3. Nc3 {[%clk 0:15:17]}  Bb4 {[%clk 0:15:00]} 4. e3 {[%clk 0:15:17]}  c5 {[%clk 0:15:00]} 5. Nf3 {[%clk 0:15:17]}  Nc6 {[%clk 0:14:58]} 6. Bd2 {[%clk 0:15:25]}  cxd4 {[%clk 0:14:10]} 7. Nxd4 {[%clk 0:14:57]}  O-O {[%clk 0:14:10]} 8. a3 {[%clk 0:13:54]}  Be7 {[%clk 0:14:18]} 9. Bd3 {[%clk 0:13:54]}  d5 {[%clk 0:14:17]} 10. cxd5 {[%clk 0:13:54]}  Nxd4 {[%clk 0:14:17]} 11. exd4 {[%clk 0:13:54]}  Nxd5 {[%clk 0:13:31]} 12. O-O {[%clk 0:12:40]}  Bf6 {[%clk 0:13:26]} 13. Qg4 {[%clk 0:11:41]}  g6 {[%clk 0:13:18]} 14. Bh6 {[%clk 0:10:47]}  Bg7 {[%clk 0:13:01]} 15. Bg5 {[%clk 0:09:56]}  Qb6 {[%clk 0:12:02]} 16. Rfd1 {[%clk 0:09:00]}  Qxb2 {[%clk 0:11:58]} 17. Nb5 {[%clk 0:07:20]}  Qb3 {[%clk 0:11:58]} 18. Qh4 {[%clk 0:07:20]}  a6 {[%clk 0:10:05]} 19. Nd6 {[%clk 0:06:36]}  Qb6 {[%clk 0:09:28]} 20. Ne4 {[%clk 0:05:51]}  Qxd4 {[%clk 0:08:59]} 21. Rac1 {[%clk 0:05:49]}  Qe5 {[%clk 0:08:18]} 22. Be7 {[%clk 0:05:11]}  Nxe7 {[%clk 0:07:37]} 23. Qxe7 {[%clk 0:04:24]}  b6 {[%clk 0:07:08]} 24. Nd6 {[%clk 0:04:33]}  Bh6 {[%clk 0:05:33]} 25. Re1 {[%clk 0:01:59]}  Qg5 {[%clk 0:03:14]} 26. Qc7 {[%clk 0:01:59]}  Qa5 {[%clk 0:03:05]} 27. Nc4 {[%clk 0:01:54]}  Qc5 {[%clk 0:01:56]} 28. Nxb6 {[%clk 0:01:54]}  Qxc7 {[%clk 0:01:56]} 29. Rxc7 {[%clk 0:01:54]}  Rb8 {[%clk 0:01:56]} 30. Nxc8 {[%clk 0:01:54]}  Rfxc8 {[%clk 0:02:44]} 31. Rxc8+ {[%clk 0:00:50]}  Rxc8 {[%clk 0:02:44]} 32. Bxa6 {[%clk 0:00:50]}  Ra8 {[%clk 0:02:44]} 33. Bc4 {[%clk 0:00:50]}  Rxa3 {[%clk 0:02:44]} 34. g3 {[%clk 0:00:50]}  Rc3 {[%clk 0:02:44]} 35. Bb5 {[%clk 0:00:50]}  Rc5 {[%clk 0:02:44]} 36. Bd3 {[%clk 0:00:50]}  Rc3 {[%clk 0:02:44]} 37. Bb5 {[%clk 0:00:50]}  Rc5 {[%clk 0:02:44]} 38. Be2 {[%clk 0:00:50]}  Bg7 {[%clk 0:02:44]} 39. Rd1 {[%clk 0:00:50]}  Bf6 {[%clk 0:02:44]} 40. Rd7 {[%clk 0:01:14]}  Kf8 {[%clk 0:03:13]} 41. h4 {[%clk 0:01:14]}  Be7 {[%clk 0:03:13]} 42. Rb7 {[%clk 0:01:14]}  Rc2 {[%clk 0:03:13]} 43. Kf1 {[%clk 0:01:14]}  Bf6 {[%clk 0:03:13]} 44. h5 {[%clk 0:01:14]}  Bd4 {[%clk 0:03:33]} 45. Rd7 {[%clk 0:01:03]}  Bf6 {[%clk 0:03:33]} 46. Bf3 {[%clk 0:01:03]}  Kg7 {[%clk 0:02:12]} 47. Bg4 {[%clk 0:01:04]}  Kf8 {[%clk 0:02:12]} 48. Be2 {[%clk 0:01:04]}  Rc5 {[%clk 0:02:12]} 49. hxg6 {[%clk 0:01:04]}  hxg6 {[%clk 0:02:12]} 50. Bd3 {[%clk 0:01:04]}  Ra5 {[%clk 0:02:12]} 51. Bc4 {[%clk 0:01:15]}  Ra1+ {[%clk 0:02:47]} 52. Kg2 {[%clk 0:01:15]}  Rc1 {[%clk 0:02:47]} 53. Bd3 {[%clk 0:01:15]}  Rd1 {[%clk 0:02:47]} 54. Bb5 {[%clk 0:01:15]}  Rb1 {[%clk 0:02:47]} 55. Bd3 {[%clk 0:01:15]}  Rb2 {[%clk 0:02:47]} 56. Kf1 {[%clk 0:01:15]}  Ke8 {[%clk 0:02:47]} 57. Rc7 {[%clk 0:01:06]}  Rd2 {[%clk 0:03:19]} 58. Bb5+ {[%clk 0:01:06]}  Kf8 {[%clk 0:03:19]} 59. Rd7 {[%clk 0:01:06]}  Rb2 {[%clk 0:03:19]} 60. Be2 {[%clk 0:01:06]}  Be7 {[%clk 0:03:19]} 61. Rc7 {[%clk 0:01:06]}  Bd6 {[%clk 0:03:19]} 62. Rc8+ {[%clk 0:01:06]}  Ke7 {[%clk 0:03:19]} 63. Bd3 {[%clk 0:01:06]}  Rd2 {[%clk 0:03:46]} 64. Bb5 {[%clk 0:01:08]}  Be5 {[%clk 0:03:46]} 65. Be2 {[%clk 0:01:08]}  Bd4 {[%clk 0:03:46]} 66. Rc7+ {[%clk 0:01:08]}  Ke8 {[%clk 0:03:41]} 67. f4 {[%clk 0:00:46]}  Rb2 {[%clk 0:03:41]} 68. Rc4 {[%clk 0:00:46]}  Bb6 {[%clk 0:03:41]} 69. Rc8+ {[%clk 0:00:46]}  Ke7 {[%clk 0:03:41]} 70. Rb8 {[%clk 0:00:46]}  Rb1+ {[%clk 0:03:24]} 71. Kg2 {[%clk 0:01:01]}  Rg1+ {[%clk 0:03:24]} 72. Kf3 {[%clk 0:01:01]}  Ba5 {[%clk 0:03:24]} 73. Rb7+ {[%clk 0:01:01]}  Kf8 {[%clk 0:03:24]} 74. g4 {[%clk 0:01:01]}  Be1 {[%clk 0:03:24]} 75. f5 {[%clk 0:01:01]}  Rg3+ {[%clk 0:03:12]} 76. Kf4 {[%clk 0:00:43]}  Rc3 {[%clk 0:03:12]} 77. fxg6 {[%clk 0:00:43]}  Bd2+ {[%clk 0:03:12]} 78. Ke5 {[%clk 0:00:43]}  Re3+ {[%clk 0:03:12]} 79. Kf6 {[%clk 0:00:15]}  Bc3+ {[%clk 0:03:20]} 80. Kg5 {[%clk 0:00:15]}  f6+ {[%clk 0:03:20]} 0-1


[Site "http://www.Chess.com"]

[Event "FIDE World Rapid Chess Championship 2021"]
[White "Mamedov, Rauf"]
[Black "Faizrakhmanov, Ramil"]
[WhiteFideId "13401653"]
[BlackFideId "24103209"]
[WhiteElo "2690"]
[BlackElo "2461"]
[Result "1-0"]
[Round "06"]
[TimeControl "900+10"]
[Date "2021.12.27"]
[WhiteClock "0:00:00"]
[BlackClock "0:00:00"]

1. g3 {[%clk 0:15:00]}  Nf6 {[%clk 0:15:00]} 2. Bg2 {[%clk 0:15:00]}  d5 {[%clk 0:15:00]} 3. d3 {[%clk 0:15:00]}  c6 {[%clk 0:15:05]} 4. Nd2 {[%clk 0:15:18]}  e5 {[%clk 0:15:05]} 5. e4 {[%clk 0:15:18]}  Bd6 {[%clk 0:14:10]} 6. Ngf3 {[%clk 0:15:23]}  O-O {[%clk 0:14:10]} 7. O-O {[%clk 0:15:23]}  Nbd7 {[%clk 0:14:10]} 8. Re1 {[%clk 0:15:23]}  Re8 {[%clk 0:14:10]} 9. a3 {[%clk 0:15:33]}  a5 {[%clk 0:13:56]} 10. b3 {[%clk 0:13:57]}  h6 {[%clk 0:13:56]} 11. Bb2 {[%clk 0:13:57]}  d4 {[%clk 0:13:32]} 12. c3 {[%clk 0:13:23]}  dxc3 {[%clk 0:11:26]} 13. Bxc3 {[%clk 0:12:48]}  b5 {[%clk 0:10:05]} 14. d4 {[%clk 0:12:48]}  Bb7 {[%clk 0:09:15]} 15. Qc2 {[%clk 0:12:40]}  c5 {[%clk 0:08:47]} 16. dxe5 {[%clk 0:11:47]}  Nxe5 {[%clk 0:07:26]} 17. Bxe5 {[%clk 0:11:47]}  Bxe5 {[%clk 0:07:26]} 18. Nxe5 {[%clk 0:11:47]}  Rxe5 {[%clk 0:07:26]} 19. a4 {[%clk 0:11:47]}  c4 {[%clk 0:07:23]} 20. Qc3 {[%clk 0:11:20]}  Qe7 {[%clk 0:05:45]} 21. axb5 {[%clk 0:07:18]}  cxb3 {[%clk 0:05:14]} 22. Qxb3 {[%clk 0:06:37]}  Qb4 {[%clk 0:04:04]} 23. Qxb4 {[%clk 0:03:59]}  axb4 {[%clk 0:04:00]} 24. Rxa8+ {[%clk 0:03:59]}  Bxa8 {[%clk 0:04:00]} 25. Ra1 {[%clk 0:03:59]}  Bb7 {[%clk 0:03:16]} 26. Ra7 {[%clk 0:03:44]}  Rxb5 {[%clk 0:02:26]} 27. Bf1 {[%clk 0:03:14]}  Rb6 {[%clk 0:01:13]} 28. Nc4 {[%clk 0:03:31]}  Rb5 {[%clk 0:01:13]} 29. Nd6 {[%clk 0:03:31]}  Rb6 {[%clk 0:01:13]} 30. Rxb7 {[%clk 0:03:31]}  Rxb7 {[%clk 0:01:13]} 31. Nxb7 {[%clk 0:03:31]}  Nxe4 {[%clk 0:01:13]} 32. Na5 {[%clk 0:03:08]}  Nd2 {[%clk 0:00:32]} 33. Bc4 {[%clk 0:02:00]}  g5 {[%clk 0:00:00]} 34. Ba2 {[%clk 0:00:00]}  Kg7 {[%clk 0:00:05]} 35. Nb3 {[%clk 0:00:00]}  Nf3+ {[%clk 0:00:05]} 36. Kg2 {[%clk 0:00:00]}  Ne1+ {[%clk 0:00:05]} 37. Kf1 {[%clk 0:00:00]}  Nf3 {[%clk 0:00:05]} 38. h3 {[%clk 0:00:00]}  f5 {[%clk 0:00:05]} 39. Nc5 {[%clk 0:00:00]}  Kf6 {[%clk 0:00:00]} 40. Bd5 {[%clk 0:00:00]}  Nd4 {[%clk 0:00:00]} 41. f4 {[%clk 0:00:00]}  Ke7 {[%clk 0:00:00]} 42. Nb3 {[%clk 0:00:00]}  Kd6 {[%clk 0:00:00]} 43. Bg8 {[%clk 0:00:00]}  Nc6 {[%clk 0:00:00]} 44. Ke2 {[%clk 0:00:00]}  Ne7 {[%clk 0:00:00]} 45. Bf7 {[%clk 0:00:00]}  Nc6 {[%clk 0:00:00]} 46. Ke3 {[%clk 0:00:00]}  Nd8 {[%clk 0:00:00]} 47. Bg8 {[%clk 0:00:00]}  Nc6 {[%clk 0:00:00]} 48. Nd4 {[%clk 0:00:00]}  Ne7 {[%clk 0:00:00]} 49. Bh7 {[%clk 0:00:00]}  Kc5 {[%clk 0:00:00]} 50. Nxf5 {[%clk 0:00:00]}  Nd5+ {[%clk 0:00:00]} 51. Kf3 {[%clk 0:00:00]}  gxf4 {[%clk 0:00:00]} 52. gxf4 {[%clk 0:00:00]}  b3 {[%clk 0:00:00]} 53. Nxh6 {[%clk 0:00:00]}  b2 {[%clk 0:00:00]} 54. Ng4 {[%clk 0:00:00]}  Nc3 {[%clk 0:00:00]} 55. h4 {[%clk 0:00:00]}  Kd6 {[%clk 0:00:00]} 56. h5 {[%clk 0:00:00]}  Ke7 {[%clk 0:00:00]} 57. h6 {[%clk 0:00:00]}  Kf8 {[%clk 0:00:00]} 58. Ne5 {[%clk 0:00:00]}  b1=Q {[%clk 0:00:00]} 59. Bxb1 {[%clk 0:00:00]}  Nxb1 {[%clk 0:00:00]} 60. f5 {[%clk 0:00:00]}  Nc3 {[%clk 0:00:00]} 61. f6 {[%clk 0:00:00]}  Nd5 {[%clk 0:00:00]} 62. h7 {[%clk 0:00:00]} 1-0


[Site "http://www.Chess.com"]

[Event "FIDE World Rapid Chess Championship 2021"]
[White "Dragnev, Valentin"]
[Black "Riazantsev, Alexander"]
[WhiteFideId "1634852"]
[BlackFideId "4125029"]
[WhiteElo "2409"]
[BlackElo "2632"]
[Result "0-1"]
[Round "06"]
[TimeControl "900+10"]
[Date "2021.12.27"]
[WhiteClock "0:00:21"]
[BlackClock "0:00:14"]

1. e4 {[%clk 0:15:00]}  c6 {[%clk 0:15:00]} 2. Nc3 {[%clk 0:15:00]}  d5 {[%clk 0:15:00]} 3. Nf3 {[%clk 0:15:00]}  Bg4 {[%clk 0:15:00]} 4. h3 {[%clk 0:15:50]}  Bxf3 {[%clk 0:15:41]} 5. Qxf3 {[%clk 0:15:50]}  e6 {[%clk 0:15:41]} 6. Be2 {[%clk 0:15:50]}  d4 {[%clk 0:15:41]} 7. Nb1 {[%clk 0:15:50]}  Nd7 {[%clk 0:15:41]} 8. d3 {[%clk 0:15:50]}  Bd6 {[%clk 0:15:41]} 9. h4 {[%clk 0:15:23]}  h5 {[%clk 0:14:10]} 10. Qh3 {[%clk 0:15:23]}  Ne7 {[%clk 0:14:10]} 11. g3 {[%clk 0:15:23]}  Ng6 {[%clk 0:14:10]} 12. Nd2 {[%clk 0:15:23]}  Bc7 {[%clk 0:14:10]} 13. O-O {[%clk 0:15:23]}  Qe7 {[%clk 0:14:10]} 14. c3 {[%clk 0:15:23]}  c5 {[%clk 0:12:11]} 15. cxd4 {[%clk 0:13:38]}  cxd4 {[%clk 0:11:53]} 16. Nf3 {[%clk 0:13:38]}  Bb6 {[%clk 0:11:53]} 17. Bg5 {[%clk 0:12:00]}  f6 {[%clk 0:11:36]} 18. Bd2 {[%clk 0:12:00]}  Nge5 {[%clk 0:11:36]} 19. Nxe5 {[%clk 0:11:36]}  Nxe5 {[%clk 0:11:02]} 20. Rac1 {[%clk 0:11:36]}  g5 {[%clk 0:11:10]} 21. hxg5 {[%clk 0:08:47]}  fxg5 {[%clk 0:08:47]} 22. f4 {[%clk 0:08:47]}  g4 {[%clk 0:08:47]} 23. Qh2 {[%clk 0:08:41]}  Nc6 {[%clk 0:08:55]} 24. Bxg4 {[%clk 0:07:29]}  O-O-O {[%clk 0:08:55]} 25. Bf3 {[%clk 0:07:26]}  Kb8 {[%clk 0:06:44]} 26. a3 {[%clk 0:07:26]}  Rdg8 {[%clk 0:06:44]} 27. Kf2 {[%clk 0:06:25]}  e5 {[%clk 0:07:01]} 28. f5 {[%clk 0:06:25]}  Qf7 {[%clk 0:07:01]} 29. Rc4 {[%clk 0:04:34]}  Bd8 {[%clk 0:04:52]} 30. Ke2 {[%clk 0:04:15]}  Bg5 {[%clk 0:04:08]} 31. Be1 {[%clk 0:04:15]}  Rh6 {[%clk 0:04:08]} 32. Kd1 {[%clk 0:04:15]}  Rc8 {[%clk 0:03:47]} 33. Qc2 {[%clk 0:03:48]}  a6 {[%clk 0:02:50]} 34. Be2 {[%clk 0:03:41]}  Be3 {[%clk 0:01:10]} 35. Qb3 {[%clk 0:03:07]}  Ka7 {[%clk 0:01:10]} 36. a4 {[%clk 0:03:07]}  Bg5 {[%clk 0:01:10]} 37. Kc2 {[%clk 0:02:05]}  Rb8 {[%clk 0:01:16]} 38. Rc5 {[%clk 0:01:24]}  Qf8 {[%clk 0:00:15]} 39. Rd5 {[%clk 0:00:44]}  Rc8 {[%clk 0:00:15]} 40. Kb1 {[%clk 0:00:44]}  Ka8 {[%clk 0:00:15]} 41. Rd7 {[%clk 0:00:44]}  Rb8 {[%clk 0:00:15]} 42. Rd5 {[%clk 0:00:44]}  Rc8 {[%clk 0:00:14]} 43. Bd1 {[%clk 0:00:31]}  Qe7 {[%clk 0:00:14]} 44. Rf2 {[%clk 0:00:31]}  h4 {[%clk 0:00:14]} 45. Rf1 {[%clk 0:00:21]} 0-1


[Site "http://www.Chess.com"]

[Event "FIDE World Rapid Chess Championship 2021"]
[White "Sychev, Klementy"]
[Black "Heimann, Andreas"]
[WhiteFideId "4114060"]
[BlackFideId "24624632"]
[WhiteElo "2461"]
[BlackElo "2616"]
[Result "1/2-1/2"]
[Round "06"]
[TimeControl "900+10"]
[Date "2021.12.27"]
[WhiteClock "0:03:29"]
[BlackClock "0:06:05"]

1. d4 {[%clk 0:15:00]}  Nf6 {[%clk 0:15:00]} 2. c4 {[%clk 0:15:00]}  e6 {[%clk 0:15:00]} 3. Nf3 {[%clk 0:15:00]}  d5 {[%clk 0:15:00]} 4. Nc3 {[%clk 0:15:39]}  Bb4 {[%clk 0:15:43]} 5. Bg5 {[%clk 0:15:39]}  h6 {[%clk 0:15:43]} 6. Bxf6 {[%clk 0:15:39]}  Qxf6 {[%clk 0:15:43]} 7. Qa4+ {[%clk 0:15:39]}  Nc6 {[%clk 0:15:43]} 8. e3 {[%clk 0:15:39]}  O-O {[%clk 0:15:43]} 9. Be2 {[%clk 0:15:39]}  dxc4 {[%clk 0:15:43]} 10. O-O {[%clk 0:15:39]}  Qe7 {[%clk 0:15:43]} 11. a3 {[%clk 0:16:17]}  Bxc3 {[%clk 0:15:52]} 12. bxc3 {[%clk 0:12:12]}  Qd6 {[%clk 0:14:42]} 13. Bxc4 {[%clk 0:12:20]}  b6 {[%clk 0:14:00]} 14. Bd3 {[%clk 0:11:08]}  Bb7 {[%clk 0:14:05]} 15. Be4 {[%clk 0:11:08]}  Na5 {[%clk 0:14:05]} 16. Bxb7 {[%clk 0:08:52]}  Nxb7 {[%clk 0:14:17]} 17. Rfd1 {[%clk 0:08:30]}  c5 {[%clk 0:13:12]} 18. Ne5 {[%clk 0:07:29]}  cxd4 {[%clk 0:13:12]} 19. cxd4 {[%clk 0:07:29]}  Rfc8 {[%clk 0:13:12]} 20. Rac1 {[%clk 0:07:30]}  Na5 {[%clk 0:12:36]} 21. Qb4 {[%clk 0:06:51]}  Qd8 {[%clk 0:12:36]} 22. h3 {[%clk 0:06:58]}  Rc7 {[%clk 0:10:53]} 23. Rxc7 {[%clk 0:06:42]}  Qxc7 {[%clk 0:10:57]} 24. Nd3 {[%clk 0:06:42]}  Rc8 {[%clk 0:11:06]} 25. Rc1 {[%clk 0:04:37]}  Qd7 {[%clk 0:11:06]} 26. Rxc8+ {[%clk 0:04:42]}  Qxc8 {[%clk 0:09:57]} 27. Qe7 {[%clk 0:04:42]}  Nc6 {[%clk 0:09:57]} 28. Qd6 {[%clk 0:04:42]}  Kh7 {[%clk 0:10:10]} 29. h4 {[%clk 0:04:28]}  Na5 {[%clk 0:08:06]} 30. Qe7 {[%clk 0:04:28]}  Qc3 {[%clk 0:05:47]} 31. Nf4 {[%clk 0:03:29]}  Qe1+ {[%clk 0:05:43]} 32. Kh2 {[%clk 0:03:29]}  Qxf2 {[%clk 0:05:43]} 33. Qxf7 {[%clk 0:03:29]}  Qxh4+ {[%clk 0:05:43]} 34. Kg1 {[%clk 0:03:29]}  Qe1+ {[%clk 0:06:05]} 1/2-1/2


[Site "http://www.Chess.com"]

[Event "FIDE World Rapid Chess Championship 2021"]
[White "Dziuba, Marcin"]
[Black "Ponkratov, Pavel"]
[WhiteFideId "1112953"]
[BlackFideId "4157800"]
[WhiteElo "2424"]
[BlackElo "2614"]
[Result "0-1"]
[Round "06"]
[TimeControl "900+10"]
[Date "2021.12.27"]
[WhiteClock "0:05:11"]
[BlackClock "0:04:45"]

1. d4 {[%clk 0:15:00]}  d5 {[%clk 0:15:00]} 2. c4 {[%clk 0:15:00]}  dxc4 {[%clk 0:15:00]} 3. Nf3 {[%clk 0:15:29]}  Nf6 {[%clk 0:15:27]} 4. e3 {[%clk 0:15:29]}  Bg4 {[%clk 0:15:27]} 5. Bxc4 {[%clk 0:15:29]}  e6 {[%clk 0:15:27]} 6. h3 {[%clk 0:15:29]}  Bh5 {[%clk 0:15:27]} 7. O-O {[%clk 0:15:29]}  Bd6 {[%clk 0:15:42]} 8. Nbd2 {[%clk 0:15:06]}  Nbd7 {[%clk 0:15:42]} 9. Be2 {[%clk 0:15:06]}  O-O {[%clk 0:15:42]} 10. b3 {[%clk 0:15:03]}  c5 {[%clk 0:15:01]} 11. Bb2 {[%clk 0:15:03]}  Rc8 {[%clk 0:15:01]} 12. Nc4 {[%clk 0:14:24]}  Bb8 {[%clk 0:14:56]} 13. a4 {[%clk 0:14:24]}  Qc7 {[%clk 0:14:56]} 14. Nfe5 {[%clk 0:14:24]}  cxd4 {[%clk 0:13:13]} 15. Bxd4 {[%clk 0:13:59]}  Bxe2 {[%clk 0:13:13]} 16. Qxe2 {[%clk 0:13:41]}  Nd5 {[%clk 0:13:13]} 17. g3 {[%clk 0:13:50]}  f6 {[%clk 0:12:29]} 18. Nxd7 {[%clk 0:12:32]}  Qxd7 {[%clk 0:11:58]} 19. Rfd1 {[%clk 0:12:32]}  Qf7 {[%clk 0:12:06]} 20. Rd2 {[%clk 0:11:27]}  h5 {[%clk 0:08:50]} 21. h4 {[%clk 0:09:20]}  Qg6 {[%clk 0:08:08]} 22. Rad1 {[%clk 0:09:20]}  Ne7 {[%clk 0:08:08]} 23. Qf3 {[%clk 0:07:02]}  Nf5 {[%clk 0:08:21]} 24. Kf1 {[%clk 0:05:35]}  Rf7 {[%clk 0:07:14]} 25. Bb2 {[%clk 0:05:40]}  Kh7 {[%clk 0:07:14]} 26. e4 {[%clk 0:05:40]}  Nh6 {[%clk 0:07:14]} 27. Rd7 {[%clk 0:05:11]}  Ng4 {[%clk 0:05:13]} 28. Rxf7 {[%clk 0:05:11]}  Nh2+ {[%clk 0:04:45]} 0-1


[Site "http://www.Chess.com"]

[Event "FIDE World Rapid Chess Championship 2021"]
[White "Holm, Kristian Stuvik"]
[Black "Halkias, Stelios"]
[WhiteFideId "1508083"]
[BlackFideId "4201809"]
[WhiteElo "2409"]
[BlackElo "2576"]
[Result "1-0"]
[Round "06"]
[TimeControl "900+10"]
[Date "2021.12.27"]
[WhiteClock "0:04:15"]
[BlackClock "0:01:23"]

1. d4 {[%clk 0:15:00]}  d5 {[%clk 0:15:00]} 2. c4 {[%clk 0:15:00]}  e6 {[%clk 0:15:00]} 3. Nc3 {[%clk 0:15:00]}  c5 {[%clk 0:15:00]} 4. cxd5 {[%clk 0:15:00]}  exd5 {[%clk 0:15:00]} 5. Nf3 {[%clk 0:15:00]}  Nc6 {[%clk 0:15:00]} 6. dxc5 {[%clk 0:15:37]}  d4 {[%clk 0:15:34]} 7. Na4 {[%clk 0:15:37]}  b5 {[%clk 0:15:05]} 8. cxb6 {[%clk 0:14:43]}  axb6 {[%clk 0:15:05]} 9. e3 {[%clk 0:14:43]}  Bb4+ {[%clk 0:15:13]} 10. Bd2 {[%clk 0:13:43]}  Bd7 {[%clk 0:13:52]} 11. Bb5 {[%clk 0:13:51]}  Bxd2+ {[%clk 0:11:12]} 12. Qxd2 {[%clk 0:13:20]}  Ra5 {[%clk 0:10:26]} 13. Nxd4 {[%clk 0:11:39]}  Nxd4 {[%clk 0:09:46]} 14. Bxd7+ {[%clk 0:09:11]}  Qxd7 {[%clk 0:09:46]} 15. Nxb6 {[%clk 0:09:11]}  Qb5 {[%clk 0:09:46]} 16. Qxd4 {[%clk 0:09:04]}  Nf6 {[%clk 0:04:01]} 17. Nc4 {[%clk 0:07:48]}  Qb4+ {[%clk 0:04:09]} 18. Qd2 {[%clk 0:07:46]}  Qxc4 {[%clk 0:03:57]} 19. Qxa5 {[%clk 0:07:14]}  O-O {[%clk 0:03:57]} 20. Qc3 {[%clk 0:07:14]}  Qa6 {[%clk 0:03:57]} 21. Rc1 {[%clk 0:06:28]}  Nd5 {[%clk 0:03:46]} 22. Qa3 {[%clk 0:05:07]}  Qb5 {[%clk 0:02:30]} 23. Rc5 {[%clk 0:05:07]}  Qb7 {[%clk 0:02:30]} 24. O-O {[%clk 0:05:07]}  Nf6 {[%clk 0:02:30]} 25. Rfc1 {[%clk 0:05:07]}  h5 {[%clk 0:02:30]} 26. h3 {[%clk 0:05:07]}  Qe4 {[%clk 0:01:17]} 27. Rc8 {[%clk 0:04:44]}  Rxc8 {[%clk 0:01:17]} 28. Rxc8+ {[%clk 0:04:44]}  Kh7 {[%clk 0:01:17]} 29. Qc3 {[%clk 0:04:44]}  Qb1+ {[%clk 0:01:23]} 30. Kh2 {[%clk 0:04:15]} 1-0


[Site "http://www.Chess.com"]